fUSD/lending_fUSD_20240117
["ID","MTS","AMOUNT","RATE_DAILY","PERIOD"]
[311900687,1705489982973,-500.0,0.00027397,2]
[311900688,1705489982982,-500.0,0.00027397,2]
[311900689,1705489982991,-500.0,0.00027397,2]
[311900690,1705489983000,-500.0,0.00027397,2]
[311900691,1705489983009,-500.0,0.00027397,2]
[311900692,1705489983018,-585.62151441,0.00027397,2]
[311900693,1705489983027,-841.84,0.00027397,2]
[311900694,1705489983036,-1103.54,0.00027397,2]
[311900695,1705489983045,-771.02,0.00027397,2]
[311900696,1705489983054,-674.53,0.00027397,2]
[311900697,1705489983067,-500.0,0.00027397,2]
[311900698,1705489983076,-574.3631948,0.00027397,2]
[311900699,1705489983086,-1012.5,0.00027397,2]
[311900700,1705489983096,-708.29,0.00027397,2]
[311900701,1705489983106,-902.18,0.00027397,2]
[311900702,1705489983115,-642.34,0.00027397,2]
[311900703,1705489983126,-1577.38,0.00027397,2]
[311900704,1705489983135,-642.91,0.00027397,2]
[311900705,1705489983144,-671.72,0.00027397,2]
[311900706,1705489983153,-559.49,0.00027397,2]
[311900707,1705489983164,-513.19,0.00027397,2]
[311900708,1705489983174,-1101.33,0.00027397,2]
[311900709,1705489983183,-560.17,0.00027397,2]
[311900710,1705489983193,-646.26,0.00027397,2]
[311900711,1705489983202,-540.47,0.00027397,2]
[311900712,1705489983211,-1309.23,0.00027397,2]
[311900713,1705489983220,-862.21,0.00027397,2]
[311900714,1705489983230,-592.26,0.00027397,2]
[311900715,1705489983239,-500.0,0.00027397,2]
[311900716,1705489983250,-548.37,0.00027397,2]
[311900717,1705489983258,-852.28,0.00027397,2]
[311900718,1705489983268,-751.97,0.00027397,2]
[311900719,1705489983277,-629.68,0.00027397,2]
[311900720,1705489983287,-1038.17,0.00027397,2]
[311900721,1705489983297,-865.86,0.00027397,2]
[311900722,1705489983307,-809.41,0.00027397,2]
[311900723,1705489983317,-824.35,0.00027397,2]
[311900724,1705489983326,-500.0,0.00027397,2]
[311900725,1705489983335,-583.98,0.00027397,2]
[311900726,1705489983344,-858.82,0.00027397,2]
[311900727,1705489983354,-500.0,0.00027397,2]
[311900728,1705489983363,-678.81,0.00027397,2]
[311900729,1705489983378,-924.3,0.00027397,2]
[311900730,1705489983388,-683.06,0.00027397,2]
[311900731,1705489983397,-762.3,0.00027397,2]
[311900732,1705489983406,-869.48,0.00027397,2]
[311900733,1705489983416,-726.09,0.00027397,2]
[311900734,1705489983425,-500.0,0.00027397,2]
[311900735,1705489983435,-636.58,0.00027397,2]
[311900736,1705489983445,-1000.0,0.00027397,7]
[311900737,1705489983456,-1000.0,0.00027397,7]
[311900738,1705489983465,-888.84,0.00027397,2]
[311900739,1705489983474,-1000.0,0.00027397,7]
[311900740,1705489983484,-1000.0,0.00027397,7]
[311900741,1705489983493,-1000.0,0.00027397,7]
[311900742,1705489983502,-1000.0,0.00027397,7]
[311900743,1705489983511,-681.16,0.00027397,2]
[311900744,1705489983521,-1000.0,0.00027397,7]
[311900745,1705489983530,-1000.0,0.00027397,7]
[311900746,1705489983540,-1000.0,0.00027397,7]
[311900747,1705489983550,-1000.0,0.00027397,7]
[311900748,1705489983559,-1000.0,0.00027397,7]
[311900749,1705489983568,-1000.0,0.00027397,7]
[311900750,1705489983577,-1000.0,0.00027397,7]
[311900751,1705489983586,-1000.0,0.00027397,7]
[311900752,1705489983595,-1000.0,0.00027397,7]
[311900753,1705489983605,-1000.0,0.00027397,7]
[311900754,1705489983614,-1000.0,0.00027397,7]
[311900755,1705489983624,-1000.0,0.00027397,7]
[311900756,1705489983633,-1000.0,0.00027397,7]
[311900757,1705489983642,-1114.57,0.00027397,2]
[311900758,1705489983652,-566.25262642,0.00027397,7]
[311900759,1705489983661,-986.98,0.00027397,2]
[311900760,1705489983670,-576.47315391,0.00027397,2]
[311900761,1705489983679,-560.75,0.00027397,2]
[311900762,1705489983689,-1015.76,0.00027397,2]
[311900763,1705489983698,-818.15,0.00027397,2]
[311900764,1705489983708,-924.47,0.00027397,2]
[311900765,1705489983717,-565.32,0.00027397,2]
[311900766,1705489983727,-778.03,0.00027397,2]
[311900767,1705489983736,-938.79,0.00027397,2]
[311900768,1705489983746,-685.24,0.00027397,2]
[311900769,1705489983755,-1126.57,0.00027397,2]
[311900770,1705489983764,-1529.03,0.00027397,2]
[311900771,1705489983774,-842.83,0.00027397,2]
[311900772,1705489983783,-677.6,0.00027397,2]
[311900773,1705489983792,-538.94693465,0.00027397,2]
[311900774,1705489983801,-500.0,0.00027397,2]
[311900775,1705489983811,-1113.11,0.00027397,2]
[311900776,1705489983820,-824.64,0.00027397,2]
[311900777,1705489983829,-1539.23,0.00027397,2]
[311900778,1705489983839,-509.96,0.00027397,2]
[311900779,1705489983849,-802.8,0.00027397,2]
[311900780,1705489983859,-620.77,0.00027397,2]
[311900781,1705489983869,-541.72911398,0.00027397,2]
[311900782,1705489983880,-1060.88,0.00027397,2]
[311900783,1705489983890,-1111.84,0.00027397,2]
[311900784,1705489983900,-554.16,0.00027397,2]
[311900785,1705489983911,-797.2,0.00027397,2]
[311900786,1705489983921,-814.02,0.00027397,2]
[311900787,1705489983931,-653.02,0.00027397,2]
[311900788,1705489983942,-728.98,0.00027397,2]
[311900789,1705489983953,-608.56,0.00027397,2]
[311900790,1705489983964,-500.0,0.00027397,2]
[311900791,1705489983975,-1117.37,0.00027397,2]
[311900792,1705489983986,-786.84,0.00027397,2]
[311900793,1705489983999,-644.84,0.00027397,2]
[311900794,1705489984009,-865.83,0.00027397,2]
[311900795,1705489984018,-985.83,0.00027397,2]
[311900796,1705489984028,-645.46,0.00027397,2]
[311900797,1705489984037,-535.18250111,0.00027397,2]
[311900798,1705489984047,-654.2,0.00027397,2]
[311900799,1705489984056,-671.37,0.00027397,2]
[311900800,1705489984068,-333.95592554,0.00027397,2]
[311900801,1705489984078,-859.76,0.00027397,2]
[311900802,1705489984087,-679.83,0.00027397,2]
[311900803,1705489984097,-677.29,0.00027397,2]
[311900804,1705489984107,-812.38,0.00027397,2]
[311900805,1705489984116,-529.77,0.00027397,2]
[311900806,1705489984127,-905.75,0.00027397,2]
[311900807,1705489984136,-597.1,0.00027397,2]
[311900808,1705489984145,-500.0,0.00027397,2]
[311900809,1705489984155,-976.89,0.00027397,2]
[311900810,1705489984164,-921.81,0.00027397,2]
[311900811,1705489984175,-801.58,0.00027397,2]
[311900812,1705489984186,-1318.24,0.00027397,2]
[311900813,1705489984196,-565.85,0.00027397,2]
[311900814,1705489984207,-761.53,0.00027397,2]
[311900815,1705489984217,-500.0,0.00027397,2]
[311900816,1705489984227,-638.67,0.00027397,2]
[311900817,1705489984238,-903.46,0.00027397,2]
[311900818,1705489984248,-689.33,0.00027397,2]
[311900819,1705489984258,-642.35,0.00027397,2]
[311900820,1705489984267,-1001.32,0.00027397,2]
[311900821,1705489984277,-623.34,0.00027397,2]
[311900822,1705489984287,-893.53,0.00027397,2]
[311900823,1705489984297,-1127.94,0.00027397,2]
[311900824,1705489984306,-970.35,0.00027397,2]
[311900825,1705489984316,-703.72,0.00027397,2]
[311900826,1705489984326,-877.36,0.00027397,2]
[311900827,1705489984336,-500.0,0.00027397,2]
[311900828,1705489984345,-1113.03,0.00027397,2]
[311900829,1705489984355,-1009.59,0.00027397,2]
[311900830,1705489984366,-671.58,0.00027397,2]
[311900831,1705489984380,-645.55,0.00027397,2]
[311900832,1705489984390,-519.72,0.00027397,2]
[311900833,1705489984399,-832.3,0.00027397,2]
[311900834,1705489984409,-509.1,0.00027397,2]
[311900835,1705489984419,-556.75,0.00027397,2]
[311900836,1705489984428,-500.0,0.00027397,2]
[311900837,1705489984438,-919.94,0.00027397,2]
[311900838,1705489984449,-574.45,0.00027397,2]
[311900839,1705489984459,-730.7,0.00027397,2]
[311900840,1705489984469,-1564.11,0.00027397,2]
[311900841,1705489984479,-753.37,0.00027397,2]
[311900842,1705489984489,-1972.35,0.00027397,2]
[311900843,1705489984499,-819.9,0.00027397,2]
[311900844,1705489984509,-665.72,0.00027397,2]
[311900845,1705489984520,-1330.15,0.00027397,2]
[311900846,1705489984531,-453.9577492,0.00027397,2]
[311900847,1705489984542,-1961.2,0.00027397,2]
[311900848,1705489984552,-924.92,0.00027397,2]
[311900849,1705489984562,-1342.87,0.00027397,2]
[311900850,1705489984571,-516.6,0.00027397,2]
[311900851,1705489984581,-966.0,0.00027397,2]
[311900852,1705489984590,-872.31,0.00027397,2]
[311900853,1705489984601,-1214.22,0.00027397,2]
[311900854,1705489984610,-748.35,0.00027397,2]
[311900855,1705489984621,-500.0,0.00027397,2]
[311900856,1705489984632,-937.16,0.00027397,2]
[311900857,1705489984642,-799.25,0.00027397,2]
[311900858,1705489984651,-628.65,0.00027397,2]
[311900859,1705489984661,-616.54,0.00027397,2]
[311900860,1705489984671,-170.54414131,0.00027397,2]
[311900861,1705489984680,-717.16,0.00027397,2]
[311900862,1705489984690,-2202.67,0.00027397,2]
[311900863,1705489984700,-994.43,0.00027397,2]
[311900864,1705489984709,-707.9,0.00027397,2]
[311900865,1705489984719,-1314.57,0.00027397,2]
[311900866,1705489984729,-700.88,0.00027397,2]
[311900867,1705489984738,-747.11,0.00027397,2]
[311900868,1705489984749,-1247.23,0.00027397,2]
[311900869,1705489984758,-1107.65,0.00027397,2]
[311900870,1705489984770,-1113.86,0.00027397,2]
[311900871,1705489984780,-940.75,0.00027397,2]
[311900872,1705489984789,-1068.04,0.00027397,2]
[311900873,1705489984800,-591.69,0.00027397,2]
[311900874,1705489984809,-514.52,0.00027397,2]
[311900875,1705489984819,-1801.96,0.00027397,2]
[311900876,1705489984829,-1119.07,0.00027397,2]
[311900877,1705489984840,-1787.03,0.00027397,2]
[311900878,1705489984850,-1787.03,0.00027397,2]
[311900879,1705489984860,-1787.03,0.00027397,2]
[311900880,1705489984870,-1787.03,0.00027397,2]
[311900881,1705489984881,-1787.03,0.00027397,2]
[311900882,1705489984891,-1787.03,0.00027397,2]
[311900883,1705489984900,-1787.03,0.00027397,2]
[311900884,1705489984910,-1787.03,0.00027397,2]
[311900885,1705489984920,-500.0,0.00027397,2]
[311900886,1705489984930,-1787.03,0.00027397,2]
[311900887,1705489984940,-1787.03,0.00027397,2]
[311900888,1705489984950,-2470.72,0.00027397,2]
[311900889,1705489984960,-1787.03,0.00027397,2]
[311900890,1705489984970,-500.0,0.00027397,2]
[311900891,1705489984980,-1787.03,0.00027397,2]
[311900892,1705489984989,-1787.03,0.00027397,2]
[311900893,1705489984999,-1787.03,0.00027397,2]
[311900894,1705489985009,-1787.03,0.00027397,2]
[311900895,1705489985019,-1787.03,0.00027397,2]
[311900896,1705489985029,-524.15,0.00027397,2]
[311900897,1705489985039,-1787.03,0.00027397,2]
[311900898,1705489985049,-1787.03,0.00027397,2]
[311900899,1705489985058,-1787.03,0.00027397,2]
[311900900,1705489985068,-1787.03,0.00027397,2]
[311900901,1705489985079,-904.79,0.00027397,2]
[311900902,1705489985089,-1787.03,0.00027397,2]
[311900903,1705489985099,-510.6,0.00027397,2]
[311900904,1705489985109,-576.31,0.00027397,2]
[311900905,1705489985120,-1190.34,0.00027397,2]
[311900906,1705489985131,-764.68,0.00027397,2]
[311900907,1705489985142,-636.43,0.00027397,2]
[311900908,1705489985151,-670.55,0.00027397,2]
[311900909,1705489985162,-1264.48,0.00027397,2]
[311900910,1705489985172,-1052.25,0.00027397,2]
[311900911,1705489985182,-814.85,0.00027397,2]
[311900912,1705489985192,-806.14,0.00027397,7]
[311900913,1705489985202,-806.14,0.00027397,7]
[311900914,1705489985213,-806.14,0.00027397,7]
[311900915,1705489985223,-544.71,0.00027397,2]
[311900916,1705489985233,-806.14,0.00027397,7]
[311900917,1705489985244,-500.0,0.00027397,2]
[311900918,1705489985254,-806.14,0.00027397,7]
[311900919,1705489985265,-806.14,0.00027397,7]
[311900920,1705489985275,-806.14,0.00027397,7]
[311900921,1705489985285,-806.14,0.00027397,7]
[311900922,1705489985295,-806.14,0.00027397,7]
[311900923,1705489985306,-806.14,0.00027397,7]
[311900924,1705489985316,-1206.43,0.00027397,2]
[311900925,1705489985327,-806.14,0.00027397,7]
[311900926,1705489985337,-806.14,0.00027397,7]
[311900927,1705489985347,-806.14,0.00027397,7]
[311900928,1705489985357,-806.14,0.00027397,7]
[311900929,1705489985368,-806.14,0.00027397,7]
[311900930,1705489985380,-500.0,0.00027397,2]
[311900931,1705489985390,-806.14,0.00027397,7]
[311900932,1705489985400,-806.14,0.00027397,7]
[311900933,1705489985410,-806.14,0.00027397,7]
[311900934,1705489985421,-806.14,0.00027397,7]
[311900935,1705489985431,-1198.01,0.00027397,2]
[311900936,1705489985442,-1043.84,0.00027397,2]
[311900937,1705489985452,-806.14,0.00027397,7]
[311900938,1705489985463,-806.14,0.00027397,7]
[311900939,1705489985473,-1069.27,0.00027397,2]
[311900940,1705489985483,-1304.35,0.00027397,2]
[311900941,1705489985493,-1087.69,0.00027397,2]
[311900942,1705489985503,-962.26,0.00027397,2]
[311900943,1705489985513,-516.2,0.00027397,2]
[311900944,1705489985523,-1632.67,0.00027397,2]
[311900945,1705489985533,-500.0,0.00027397,2]
[311900946,1705489985543,-939.16,0.00027397,2]
[311900947,1705489985553,-918.4,0.00027397,2]
[311900948,1705489985563,-995.2,0.00027397,2]
[311900949,1705489985574,-1008.57,0.00027397,2]
[311900950,1705489985583,-336.78032618,0.00027397,2]
[311900951,1705489985594,-1060.73,0.00027397,2]
[311900952,1705489985605,-534.66093781,0.00027397,2]
[311900953,1705489985615,-1029.51,0.00027397,2]
[311900954,1705489985626,-636.13,0.00027397,2]
[311900955,1705489985636,-500.0,0.00027397,2]
[311900956,1705489985646,-702.02,0.00027397,2]
[311900957,1705489985656,-701.5,0.00027397,2]
[311900958,1705489985666,-594.97,0.00027397,2]
[311900959,1705489985676,-1038.32,0.00027397,2]
[311900960,1705489985686,-572.4,0.00027397,2]
[311900961,1705489985696,-3550.63,0.00027397,2]
[311900962,1705489985706,-982.96,0.00027397,2]
[311900963,1705489985716,-579.93,0.00027397,2]
[311900964,1705489985726,-500.0,0.00027397,2]
[311900965,1705489985735,-924.4,0.00027397,2]
[311900966,1705489985745,-2301.87,0.00027397,2]
[311900967,1705489985755,-578.12,0.00027397,2]
[311900968,1705489985765,-885.89,0.00027397,2]
[311900969,1705489985774,-694.35,0.00027397,2]
[311900970,1705489985784,-711.56,0.00027397,2]
[311900971,1705489985794,-1404.62,0.00027397,2]
[311900972,1705489985804,-500.0,0.00027397,2]
[311900973,1705489985814,-635.43,0.00027397,2]
[311900974,1705489985824,-1174.22,0.00027397,2]
[311900975,1705489985834,-1235.63,0.00027397,2]
[311900976,1705489985845,-701.7,0.00027397,2]
[311900977,1705489985855,-915.13,0.00027397,2]
[311900978,1705489985865,-500.0,0.00027397,2]
[311900979,1705489985876,-391.6038143,0.00027397,2]
[311900980,1705489985886,-2849.83,0.00027397,2]
[311900981,1705489985897,-1964.36,0.00027397,2]
[311900982,1705489985907,-500.0,0.00027397,2]
[311900983,1705489985917,-544.59,0.00027397,2]
[311900984,1705489985927,-2896.5,0.00027397,2]
[311900985,1705489986242,-683.02,0.00027397,2]
[311900986,1705489986291,-1968.52,0.00027397,2]
[311900987,1705489986302,-1342.01,0.00027397,2]
[311900988,1705489986312,-675.72,0.00027397,2]
[311900989,1705489986322,-1029.41,0.00027397,2]
[311900990,1705489986331,-1548.58,0.00027397,2]
[311900991,1705489986341,-655.65,0.00027397,2]
[311900992,1705489986351,-3528.9,0.00027397,2]
[311900993,1705489986361,-550.17,0.00027397,2]
[311900994,1705489986371,-530.48,0.00027397,2]
[311900995,1705489986385,-1274.2,0.00027397,2]
[311900996,1705489986395,-500.0,0.00027397,2]
[311900997,1705489986405,-710.03,0.00027397,2]
[311900998,1705489986414,-826.31,0.00027397,2]
[311900999,1705489986425,-1478.93,0.00027397,2]
[311901000,1705489986435,-8305.92,0.00027397,2]
[311901001,1705489986444,-3468.63,0.00027397,2]
[311901002,1705489986455,-688.83,0.00027397,2]
[311901003,1705489986465,-598.69,0.00027397,2]
[311901004,1705489986475,-566.04,0.00027397,2]
[311901005,1705489986485,-13840.01,0.00027397,2]
[311901006,1705489986495,-330.45,0.00027397,2]
[311901007,1705489986505,-678.15,0.00027397,2]
[311901008,1705489986514,-611.72,0.00027397,2]
[311901009,1705489986524,-6007.21,0.00027397,2]
[311901010,1705489986534,-11260.59,0.00027397,2]
[311901011,1705489986544,-537.26,0.00027397,2]
[311901012,1705489986554,-576.52,0.00027397,2]
[311901013,1705489986564,-839.94,0.00027397,2]
[311901014,1705489986574,-785.85,0.00027397,2]
[311901015,1705489986585,-2426.8,0.00027397,2]
[311901016,1705489986594,-2267.53,0.00027397,2]
[311901017,1705489986605,-9043.74,0.00027397,2]
[311901018,1705489986615,-1153.46,0.00027397,2]
[311901019,1705489986626,-5019.46,0.00027397,2]
[311901020,1705489986635,-14230.88,0.00027397,2]
[311901021,1705489986644,-585.41,0.00027397,2]
[311901022,1705489986655,-1948.18,0.00027397,2]
[311901023,1705489986665,-151.25803072,0.00027397,2]
[311901024,1705489986674,-807.32,0.00027397,2]
[311901025,1705489986684,-541.68,0.00027397,2]
[311901026,1705489986694,-1841.76,0.00027397,2]
[311901027,1705489986703,-648.92,0.00027397,2]
[311901028,1705489986713,-1313.51,0.00027397,2]
[311901029,1705489986723,-7863.6,0.00027397,2]
[311901030,1705489986733,-669.79,0.00027397,2]
[311901031,1705489986743,-1235.43,0.00027397,2]
[311901032,1705489986753,-1875.02,0.00027397,2]
[311901033,1705489986764,-886.27,0.00027397,2]
[311901034,1705489986774,-861.27,0.00027397,2]
[311901035,1705489986785,-2235.54,0.00027397,2]
[311901036,1705489986794,-6074.67,0.00027397,2]
[311901037,1705489986803,-863.63,0.00027397,2]
[311901038,1705489986812,-697.24,0.00027397,2]
[311901039,1705489986822,-524.02,0.00027397,2]
[311901040,1705489986833,-4516.86,0.00027397,2]
[311901041,1705489986843,-3841.76,0.00027397,2]
[311901042,1705489986852,-974.16,0.00027397,2]
[311901043,1705489986862,-4150.83,0.00027397,2]
[311901044,1705489986873,-4448.34,0.00027397,2]
[311901045,1705489986886,-500.0,0.00027397,2]
[311901046,1705489986896,-533.91,0.00027397,2]
[311901047,1705489986906,-566.02,0.00027397,2]
[311901048,1705489986917,-2935.1,0.00027397,2]
[311901049,1705489986927,-1309.04,0.00027397,2]
[311901050,1705489986936,-1965.44,0.00027397,2]
[311901051,1705489986946,-992.22,0.00027397,2]
[311901052,1705489986956,-984.15,0.00027397,2]
[311901053,1705489986966,-500.0,0.00027397,2]
[311901054,1705489986975,-155.0,0.00027397,2]
[311901055,1705489986985,-32469.27,0.00027397,2]
[311901056,1705489986995,-573.08,0.00027397,2]
[311901057,1705489987005,-661.33,0.00027397,2]
[311901058,1705489987015,-615.65,0.00027397,2]
[311901059,1705489987024,-1696.71,0.00027397,2]
[311901060,1705489987034,-649.27,0.00027397,2]
[311901061,1705489987044,-2575.9,0.00027397,2]
[311901062,1705489987053,-1939.24,0.00027397,2]
[311901063,1705489987062,-3511.42,0.00027397,2]
[311901064,1705489987072,-500.0,0.00027397,2]
[311901065,1705489987082,-637.83585918,0.00027397,2]
[311901066,1705489987091,-1929.09,0.00027397,2]
[311901067,1705489987101,-272.76,0.00027397,2]
[311901068,1705489987110,-1412.27,0.00027397,2]
[311901069,1705489987119,-2389.77,0.00027397,2]
[311901070,1705489987131,-2475.33,0.00027397,2]
[311901071,1705489987141,-1653.65,0.00027397,2]
[311901072,1705489987150,-4575.47,0.00027397,2]
[311901073,1705489987161,-14816.63,0.00027397,2]
[311901074,1705489987171,-661.55,0.00027397,2]
[311901075,1705489987180,-834.9,0.00027397,2]
[311901076,1705489987190,-1732.77,0.00027397,2]
[311901077,1705489987200,-8016.45,0.00027397,2]
[311901078,1705489987210,-558.85,0.00027397,2]
[311901079,1705489987220,-1352.99,0.00027397,2]
[311901080,1705489987229,-1784.49,0.00027397,2]
[311901081,1705489987239,-678.67,0.00027397,2]
[311901082,1705489987248,-1038.1,0.00027397,2]
[311901083,1705489987257,-9036.89,0.00027397,2]
[311901084,1705489987267,-815.12,0.00027397,2]
[311901085,1705489987277,-1774.09,0.00027397,2]
[311901086,1705489987286,-502.32,0.00027397,2]
[311901087,1705489987296,-2414.66,0.00027397,2]
[311901088,1705489987307,-5111.21,0.00027397,2]
[311901089,1705489987316,-1000.0,0.00027397,2]
[311901090,1705489987327,-1734.88,0.00027397,2]
[311901091,1705489987337,-1000.0,0.00027397,2]
[311901092,1705489987348,-1000.0,0.00027397,2]
[311901093,1705489987357,-855.29,0.00027397,2]
[311901094,1705489987367,-1000.0,0.00027397,2]
[311901095,1705489987378,-1000.0,0.00027397,2]
[311901096,1705489987389,-1000.0,0.00027397,2]
[311901097,1705489987399,-1000.0,0.00027397,2]
[311901098,1705489987409,-2245.54,0.00027397,2]
[311901099,1705489987418,-1000.0,0.00027397,2]
[311901100,1705489987429,-1000.0,0.00027397,2]
[311901101,1705489987439,-1744.59,0.00027397,2]
[311901102,1705489987449,-1000.0,0.00027397,2]
[311901103,1705489987461,-1000.0,0.00027397,2]
[311901104,1705489987472,-1000.0,0.00027397,2]
[311901105,1705489987482,-1000.0,0.00027397,2]
[311901106,1705489987492,-1000.0,0.00027397,2]
[311901107,1705489987502,-1000.0,0.00027397,2]
[311901108,1705489987511,-1274.36,0.00027397,2]
[311901109,1705489987520,-503.04728029,0.00027397,2]
[311901110,1705489987531,-706.05,0.00027397,2]
[311901111,1705489987540,-1510.08,0.00027397,2]
[311901112,1705489987550,-887.83,0.00027397,2]
[311901113,1705489987558,-1357.1,0.00027397,2]
[311901114,1705489987568,-1827.37,0.00027397,2]
[311901115,1705489987577,-1435.95,0.00027397,2]
[311901116,1705489987586,-584.24,0.00027397,2]
[311901117,1705489987595,-663.37,0.00027397,2]
[311901118,1705489987603,-779.77,0.00027397,2]
[311901119,1705489987613,-597.44,0.00027397,2]
[311901120,1705489987622,-3629.95,0.00027397,2]
[311901121,1705489987632,-1883.37,0.00027397,2]
[311901122,1705489987641,-916.35,0.00027397,2]
[311901123,1705489987651,-992.47,0.00027397,2]
[311901124,1705489987660,-1639.63,0.00027397,2]
[311901125,1705489987671,-1741.77,0.00027397,2]
[311901126,1705489987681,-3959.88,0.00027397,2]
[311901127,1705489987690,-820.93,0.00027397,2]
[311901128,1705489987699,-7153.04,0.00027397,2]
[311901129,1705489987708,-500.0,0.00027397,2]
[311901130,1705489987717,-806.13,0.00027397,2]
[311901131,1705489987727,-2360.61,0.00027397,2]
[311901132,1705489987737,-782.9,0.00027397,2]
[311901133,1705489987746,-1392.64,0.00027397,2]
[311901134,1705489987755,-500.0,0.00027397,2]
[311901135,1705489987764,-1083.43,0.00027397,2]
[311901136,1705489987773,-507.5,0.00027397,2]
[311901137,1705489987782,-778.97,0.00027397,2]
[311901138,1705489987791,-979.46,0.00027397,2]
[311901139,1705489987800,-909.26,0.00027397,2]
[311901140,1705489987809,-3419.57,0.00027397,2]
[311901141,1705489987819,-1861.48,0.00027397,2]
[311901142,1705489987828,-1210.04,0.00027397,2]
[311901143,1705489987837,-1060.67,0.00027397,2]
[311901144,1705489987847,-2842.76,0.00027397,2]
[311901145,1705489987857,-500.0,0.00027397,7]
[311901146,1705489987867,-3566.82,0.00027397,5]
[311901147,1705489987876,-500.0,0.00027397,7]
[311901148,1705489987885,-1195.39,0.00027397,2]
[311901149,1705489987894,-1906.25,0.00027397,2]
[311901150,1705489987903,-500.0,0.00027397,7]
[311901151,1705489987912,-5873.11,0.00027397,2]
[311901152,1705489987921,-500.0,0.00027397,7]
[311901153,1705489987930,-500.0,0.00027397,7]
[311901154,1705489987940,-500.0,0.00027397,7]
[311901155,1705489987949,-500.0,0.00027397,7]
[311901156,1705489987959,-1159.83,0.00027397,2]
[311901157,1705489987967,-500.0,0.00027397,7]
[311901158,1705489987976,-500.0,0.00027397,7]
[311901159,1705489987985,-500.0,0.00027397,7]
[311901160,1705489987994,-500.0,0.00027397,7]
[311901161,1705489988003,-500.0,0.00027397,7]
[311901162,1705489988012,-500.0,0.00027397,2]
[311901163,1705489988021,-500.0,0.00027397,7]
[311901164,1705489988031,-500.0,0.00027397,7]
[311901165,1705489988040,-1059.12,0.00027397,2]
[311901166,1705489988049,-500.0,0.00027397,7]
[311901167,1705489988058,-500.0,0.00027397,7]
[311901168,1705489988068,-523.38870079,0.00027397,7]
[311901169,1705489988078,-651.56,0.00027397,2]
[311901170,1705489988087,-3914.25,0.00027397,2]
[311901171,1705489988096,-1418.66,0.00027397,2]
[311901172,1705489988106,-1392.42,0.00027397,2]
[311901173,1705489988115,-1713.01,0.00027397,2]
[311901174,1705489988124,-200.0,0.00027397,5]
[311901175,1705489988134,-2140.36,0.00027397,2]
[311901176,1705489988144,-778.99,0.00027397,2]
[311901177,1705489988153,-2146.35,0.00027397,2]
[311901178,1705489988162,-2303.4,0.00027397,2]
[311901179,1705489988171,-2140.57,0.00027397,2]
[311901180,1705489988180,-1461.06,0.00027397,2]
[311901181,1705489988190,-1784.9,0.00027397,2]
[311901182,1705489988199,-539.85,0.00027397,2]
[311901183,1705489988208,-1509.91,0.00027397,2]
[311901184,1705489988218,-27781.74,0.00027397,2]
[311901185,1705489988227,-672.09,0.00027397,2]
[311901186,1705489988236,-881.13,0.00027397,2]